bitfinex-derivatives/quotes_ETHF0:USTF0_20251009
["timestamp","ask_amount","ask_price","bid_price","bid_amount"]
[1760030221850,0.238,4306.2,4305.7,1.58233]
[1760030222053,0.238,4306.2,4306.1,4.3723]
[1760030222255,0.00225991,4306.3,4306.2,1.1645]
[1760030222450,0.24025991,4306.3,4306.2,1.1645]
[1760030222650,3.2078,4307.3,4306.3,0.41777]
[1760030222851,3.2078,4307.3,4306.1,3.4458]
[1760030222852,1.1268,4307.4,4307.1,1.1645]
[1760030223054,3.2078,4307.8,4307.3,0.41768]
[1760030223252,0.238,4308.1,4307.8,1.1645]
[1760030223456,0.238,4308.0,4307.8,1.1645]
[1760030223656,3.2611233,4308.0,4307.8,1.16715682]
[1760030223855,0.24067143,4308.0,4307.8,1.16715682]
[1760030224360,0.24067143,4308.0,4307.9,1.1645]
[1760030224556,0.24067143,4308.0,4307.8,0.00265682]
[1760030224557,1.1268,4307.9,4307.8,0.00265682]
[1760030225057,0.00267143,4308.0,4307.8,0.00265682]
[1760030225361,0.00267143,4308.0,4307.9,1.1645]
[1760030227259,1.86855237,4309.2,4308.2,1.0919]
[1760030227260,1.1046,4309.1,4308.2,1.0919]
[1760030227569,3.0010974,4308.9,4308.3,1.0919]
[1760030227759,3.2390974,4308.9,4308.3,1.0919]
[1760030228062,0.238,4308.9,4308.3,1.0919]
[1760030228263,0.24087952,4308.9,4308.3,1.0919]
[1760030228761,0.00287952,4308.9,4308.3,1.0919]
[1760030229058,0.00287952,4308.9,4308.6,1.0919]
[1760030229470,0.00287952,4308.9,4308.8,1.0919]
[1760030229863,1.3426,4310.1,4309.0,0.449]
[1760030230158,3.5416731,4310.0,4309.4,1.0919]
[1760030230359,3.03532527,4310.0,4309.9,3.2078]
[1760030230572,1.1694,4310.2,4309.9,3.2078]
[1760030230862,0.0023255,4310.2,4309.9,3.2078]
[1760030232257,0.0023255,4310.2,4310.0,1.5409]
[1760030232459,0.0023255,4310.2,4310.1,1.0919]
[1760030234063,0.0023255,4310.2,4310.1,41.8919]
[1760030236370,0.0023255,4310.2,4310.1,46.8919]
[1760030238273,0.0023255,4310.2,4310.1,42.1299]
[1760030238476,0.0023255,4310.2,4310.1,47.1299]
[1760030238675,3.5786,4311.5,4310.1,47.1299]
[1760030238676,4.855,4311.5,4310.5,1.5409]
[1760030238864,4.855,4311.5,4310.7,1.0919]
[1760030239064,3.01277902,4311.4,4310.7,1.0919]
[1760030239372,3.01277902,4311.4,4310.6,3.4458]
[1760030239768,1.4074,4311.3,4310.6,4.2997]
[1760030240077,2.98252786,4311.2,4310.6,4.2997]
[1760030240573,2.98252786,4311.2,4310.6,4.5377]
[1760030240873,0.00236342,4311.4,4310.7,1.0919]
[1760030241070,0.00236342,4311.4,4311.3,3.2078]
[1760030241271,1.1694,4312.2,4311.5,0.449]
[1760030241470,1.1694,4312.2,4311.4,1.0919]
[1760030241768,3.01140248,4312.1,4311.4,1.3299]
[1760030241967,3.01140248,4312.1,4311.5,41.249]
[1760030242378,3.01330142,4312.1,4311.5,41.249]
[1760030243373,1.6217,4312.0,4311.5,40.8]
[1760030243569,1.1694,4311.9,4311.5,40.8]
[1760030243769,1.1694,4311.8,4311.5,40.8]
[1760030244268,0.4523,4312.0,4311.5,40.8]
[1760030244575,4.16375678,4311.9,4311.5,40.8]
[1760030244769,1.1694,4311.7,4311.5,40.8]
[1760030244970,2.99435678,4311.9,4311.5,40.8]
[1760030245169,0.4523,4312.0,4311.5,40.8]
[1760030245373,1.1694,4311.9,4311.3,3.21048105]
[1760030245669,1.1694,4311.8,4311.3,3.21048105]
[1760030245872,1.1694,4311.5,4311.4,40.8]
[1760030246068,3.05814545,4311.7,4311.4,40.8]
[1760030246270,0.4523,4312.0,4311.5,1.0919]
[1760030246466,1.1694,4311.8,4311.4,40.8]
[1760030246671,1.1694,4311.9,4311.5,0.449]
[1760030246969,0.6903,4312.0,4311.6,1.0919]
[1760030247367,1.6217,4311.5,4311.4,40.8]
[1760030247574,1.1694,4311.4,4311.3,0.00268105]
[1760030248174,7.33990821,4311.4,4311.3,0.00268105]
[1760030248676,12.33990821,4311.4,4311.3,0.00268105]
[1760030249170,1.1694,4310.4,4309.7,3.2078]
[1760030249369,0.238,4310.3,4309.7,3.2078]
[1760030249568,3.21940502,4310.3,4309.7,3.2078]
[1760030249773,1.1694,4310.2,4309.7,3.2078]
[1760030250179,1.1694,4310.2,4309.7,3.20942913]
[1760030250180,2.98140502,4310.2,4309.7,3.20942913]
[1760030250381,0.238,4310.1,4309.7,3.20942913]
[1760030250682,1.1694,4310.0,4309.8,1.0919]
[1760030250878,0.238,4310.3,4309.8,1.0919]
[1760030251376,1.4074,4310.3,4309.8,1.0919]
[1760030251580,1.1694,4310.8,4309.8,1.3299]
[1760030251877,1.1694,4311.4,4310.6,1.0919]
[1760030252081,0.238,4311.2,4310.6,1.0919]
[1760030252278,1.1694,4311.0,4310.6,1.0919]
[1760030252873,1.4074,4311.2,4310.6,1.0919]
[1760030253078,1.67210658,4311.1,4310.5,1.5409]
[1760030253278,0.50270658,4311.0,4310.6,1.0919]
[1760030253473,1.67210658,4311.0,4310.6,1.0919]
[1760030253673,0.50270658,4310.9,4310.5,0.449]
[1760030254079,1.67210658,4310.9,4310.5,0.449]
[1760030254273,0.50270658,4310.8,4310.5,0.449]
[1760030254674,0.50270658,4310.8,4310.6,42.1299]
[1760030254880,1.1694,4311.4,4310.7,1.0919]
[1760030254881,1.4074,4311.4,4310.7,1.0919]
[1760030255083,0.50336669,4311.3,4310.7,1.0919]
[1760030255287,0.50336669,4311.2,4310.6,41.038]
[1760030255488,1.67276669,4311.1,4310.6,41.038]
[1760030255788,0.50336669,4311.0,4310.7,1.1138]
[1760030255983,0.50336669,4311.0,4310.6,41.038]
[1760030256183,0.50336669,4310.9,4310.6,41.038]
[1760030256379,3.2078,4311.5,4310.8,3.2078]
[1760030256586,0.50409546,4311.4,4311.1,1.1138]
[1760030256884,1.088,4311.2,4310.8,4.3216]
[1760030257079,1.088,4311.0,4310.8,4.3216]
[1760030257278,2.33491878,4311.6,4311.0,0.4453]
[1760030257484,1.088,4311.4,4311.1,1.1138]
[1760030257783,0.50451828,4311.3,4310.9,1.1138]
[1760030257984,1.088,4311.1,4310.9,1.1138]
[1760030258184,0.50451828,4311.0,4310.9,1.1138]
[1760030258781,0.50451828,4311.4,4310.9,1.1138]
[1760030259181,1.59251828,4311.4,4310.9,0.238]
[1760030259479,1.59251828,4311.3,4311.0,1.1138]
[1760030259786,1.529,4311.0,4310.9,0.238]
[1760030259987,1.59251828,4311.0,4310.9,1.3518]
[1760030260389,0.50451828,4311.0,4310.9,1.3518]
[1760030260582,1.59251828,4311.0,4310.9,0.238]
[1760030260782,2.03351828,4311.0,4310.9,0.238]
[1760030261688,1.088,4310.9,4310.8,3.2078]
[1760030261891,2.83943706,4310.9,4310.8,3.2078]
[1760030262080,4.71555045,4310.9,4310.6,40.8]
[1760030262283,4.71555045,4310.9,4310.3,3.2078]
[1760030262284,1.088,4310.6,4310.3,3.2078]
[1760030262492,1.088,4310.4,4309.9,1.1138]
[1760030262785,0.50451828,4310.3,4309.7,44.24742913]
[1760030262989,1.088,4310.1,4309.8,1.1138]
[1760030263185,1.088,4309.9,4309.8,1.1138]
[1760030263383,0.50451828,4309.9,4309.8,1.1138]
[1760030263782,1.088,4310.7,4309.8,1.1138]
[1760030264090,1.83012024,4310.6,4310.5,4.3216]
[1760030265390,0.74212024,4310.6,4310.1,1.3377]
[1760030265580,0.50412024,4310.5,4310.2,1.0997]
[1760030265785,1.1129,4310.4,4310.2,1.0997]
[1760030265985,1.1129,4310.2,4310.1,0.238]
[1760030266189,1.61702024,4310.2,4310.1,1.3377]
[1760030266489,1.61702024,4310.2,4310.1,0.238]
[1760030266991,1.61702024,4310.2,4310.1,1.3377]
[1760030267190,1.61702024,4310.2,4310.1,0.238]
[1760030267485,0.50412024,4310.2,4309.9,3.2078]
[1760030267684,1.61702024,4310.1,4309.9,3.2078]
[1760030267888,1.61702024,4310.0,4309.9,3.2078]
[1760030268090,2.06952024,4310.0,4309.9,3.2078]
[1760030268291,1.61702024,4310.0,4309.9,3.2078]
[1760030268486,0.50412024,4310.0,4309.9,4.3075]
[1760030268685,0.50412024,4310.0,4309.9,3.2078]
[1760030268889,0.50412024,4310.0,4309.9,4.3075]
[1760030269189,1.61702024,4310.0,4309.9,3.2078]
[1760030269590,1.61702024,4310.0,4309.9,4.3075]
[1760030269986,1.61702024,4310.0,4309.9,3.2078]
[1760030270387,5.10281019,4310.0,4309.7,0.00162913]
[1760030270583,0.50412024,4309.9,4308.8,3.2078]
[1760030270789,0.4525,4308.5,4308.2,3.2078]
[1760030270989,1.1129,4308.3,4308.2,3.2078]
[1760030271184,1.61702024,4308.3,4308.2,3.2078]
[1760030271690,1.61889589,4308.3,4308.2,3.21001164]
[1760030272999,1.61889589,4308.3,4308.2,4.30971164]
[1760030273202,1.11477565,4308.3,4308.2,4.30971164]
[1760030273404,1.11477565,4308.3,4308.2,3.21001164]
[1760030274299,1.11477565,4308.3,4308.2,0.00221164]
[1760030274601,4.40613044,4308.3,4308.2,0.00221164]
[1760030274803,4.90887698,4308.3,4308.2,0.00221164]
[1760030275200,4.40613044,4308.3,4308.2,0.00221164]
[1760030275902,9.90865316,4308.3,4308.2,0.00221164]
[1760030276107,1.1129,4307.9,4307.6,3.2078]
[1760030276303,1.1129,4307.7,4306.5,3.6384]
[1760030276506,0.4525,4307.0,4306.5,3.2078]
[1760030276697,1.1129,4306.4,4306.0,3.2078]
[1760030276902,1.1129,4306.2,4305.4,3.2078]
[1760030277109,0.238,4306.3,4305.5,40.8]
[1760030277110,3.294524,4306.3,4305.5,40.8]
[1760030277408,1.5654,4305.5,4305.4,3.21050514]
[1760030277599,1.8034,4305.5,4305.4,3.21050514]
[1760030277795,4.80727773,4305.5,4305.4,3.21050514]
[1760030277996,4.56927773,4305.5,4305.4,3.21050514]
[1760030278200,4.80727773,4305.5,4305.4,3.21050514]
[1760030279205,4.80727773,4305.5,4305.4,0.00270514]
[1760030279402,9.80727773,4305.5,4305.4,0.00270514]
[1760030279705,4.56927773,4305.5,4305.4,0.00270514]
[1760030279905,4.80727773,4305.5,4305.4,0.00270514]
[1760030280303,1.1129,4305.5,4305.4,0.00270514]
[1760030280612,1.1129,4305.8,4305.4,0.00270514]
[1760030280908,0.238,4305.8,4305.7,4.3075]
[1760030281208,1.1129,4306.1,4305.8,1.0997]
[1760030281405,0.238,4306.2,4305.7,3.2078]
[1760030281611,0.4525,4305.5,4305.4,0.00270514]
[1760030281910,1.1129,4305.5,4305.4,0.00270514]
[1760030282209,0.238,4306.0,4305.6,1.0997]
[1760030282403,1.3509,4306.0,4305.9,3.2078]
[1760030282806,1.1129,4306.0,4305.9,4.3075]
[1760030283209,1.1129,4306.0,4305.9,3.2078]
[1760030283710,1.1129,4306.0,4305.9,4.3075]
[1760030283910,1.5654,4307.0,4306.1,1.0997]
[1760030284208,1.5654,4307.0,4306.0,3.2078]
[1760030284209,1.1129,4306.8,4306.0,3.2078]
[1760030284415,1.1129,4306.4,4306.1,40.8]
[1760030284706,1.1129,4306.2,4306.1,40.8]
[1760030284908,3.03093043,4306.3,4306.0,3.2078]
[1760030285108,1.1129,4306.1,4306.0,3.2078]
[1760030286111,1.1129,4306.1,4305.5,3.2078]
[1760030286112,0.4287,4306.0,4305.5,3.2078]
[1760030286504,1.1046,4305.8,4305.5,3.2078]
[1760030286814,0.4287,4306.0,4305.5,3.2078]
[1760030286815,1.1046,4305.6,4305.5,3.2078]
[1760030287213,4.12126628,4305.6,4305.5,3.2078]
[1760030287901,1.1046,4305.6,4305.5,4.2669]
[1760030288107,3.2078,4307.1,4305.5,3.2078]
[1760030288108,1.1046,4305.9,4305.5,3.2078]
[1760030288305,1.1046,4305.9,4305.5,3.6385]
[1760030288504,3.04012928,4305.8,4305.5,3.2078]
[1760030288706,1.1046,4305.7,4305.5,3.2078]
[1760030288905,1.1046,4305.7,4305.4,0.00270514]
[1760030288906,1.5333,4305.5,4305.4,0.00270514]
[1760030289304,9.51777402,4305.5,4304.4,3.2078]
[1760030289505,1.1046,4305.4,4304.4,3.2078]
[1760030289808,1.1046,4303.9,4303.8,3.2078]
[1760030290408,1.34429647,4303.9,4303.8,3.20986112]
[1760030290610,1.10629647,4303.9,4303.8,3.20986112]
[1760030290809,1.34429647,4303.9,4303.8,3.20986112]
[1760030291210,4.42740648,4303.9,4303.8,0.00206112]
[1760030292306,0.4287,4303.0,4302.9,0.02324041]
[1760030292506,1.7713,4303.0,4302.9,0.02324041]
[1760030293009,1.3426,4303.0,4302.9,0.02324041]
[1760030293211,1.3426,4303.0,4302.9,0.02502161]
[1760030294006,3.2078,4303.4,4302.9,0.02502161]
[1760030294312,4.59154729,4303.0,4302.9,0.02502161]
[1760030294512,1.1046,4303.0,4302.9,0.02502161]
[1760030294812,1.3426,4303.0,4302.9,0.02502161]
[1760030295111,1.1046,4303.3,4302.9,0.02502161]
[1760030295318,0.238,4303.4,4302.9,0.02502161]
[1760030295706,0.238,4303.5,4302.9,0.02502161]
[1760030295911,1.3426,4303.5,4303.1,1.0591]
[1760030296213,1.1046,4303.4,4303.0,0.4307]
[1760030296415,0.238,4303.5,4303.1,1.0591]
[1760030296719,1.1046,4303.4,4302.9,0.02502161]
[1760030296915,1.3426,4303.4,4303.1,3.2078]
[1760030297212,0.238,4303.4,4303.1,3.2078]
[1760030297415,0.238,4303.4,4302.9,0.02502161]
[1760030297416,0.4287,4303.0,4302.9,0.02502161]
[1760030297617,1.5333,4303.0,4302.9,0.02502161]
[1760030298208,1.1046,4303.3,4302.9,0.02502161]
[1760030298614,2.96016568,4303.3,4302.9,0.02502161]
[1760030298911,1.1046,4303.2,4302.9,0.02502161]
[1760030299114,1.5333,4303.0,4302.9,0.02502161]
[1760030299310,1.7713,4303.0,4302.9,0.02502161]
[1760030299913,1.5333,4303.0,4302.9,0.02502161]
[1760030300108,1.3426,4303.0,4302.9,0.02502161]
[1760030300616,1.3426,4303.0,4302.9,1.08412161]
[1760030300914,0.238,4303.1,4303.0,1.0591]
[1760030301114,1.1046,4303.6,4303.1,0.41809]
[1760030301419,1.1046,4303.6,4303.0,1.0591]
[1760030301420,0.238,4303.5,4303.0,0.4307]
[1760030301715,1.1046,4303.4,4303.1,0.41809]
[1760030302013,4.3124,4303.8,4303.2,0.41807]
[1760030302213,3.4458,4303.8,4303.2,0.41807]
[1760030302406,1.60781256,4303.7,4303.3,1.0591]
[1760030302614,1.1046,4303.7,4303.5,1.0591]
[1760030303010,4.3124,4304.3,4303.7,0.41803]
[1760030303315,3.2078,4304.3,4303.8,1.2971]
[1760030303519,3.2078,4304.3,4303.8,1.71512]
[1760030303916,1.1046,4304.8,4304.4,1.0591]
[1760030304119,1.1046,4304.8,4304.3,0.41797]
[1760030304317,1.1046,4304.8,4304.4,1.0591]
[1760030304518,3.2078,4304.9,4304.6,0.41794]
[1760030305021,0.00280655,4304.9,4304.8,1.0591]
[1760030305623,0.00280655,4304.9,4304.8,41.8591]
[1760030306925,0.00280655,4304.9,4304.8,46.8591]
[1760030307416,0.00280655,4304.9,4304.8,41.8591]
[1760030307820,0.00280655,4304.9,4304.8,42.0971]
[1760030308419,0.00280655,4304.9,4304.8,47.0971]
[1760030308620,3.2078,4306.2,4305.9,0.41781]
[1760030308814,3.2078,4306.8,4306.2,0.41778]
[1760030309020,0.50460873,4306.7,4306.4,1.0591]
[1760030309218,3.2078,4306.8,4306.5,0.4307]
[1760030309526,0.00260865,4306.8,4306.5,0.85139571]
[1760030309919,0.00260865,4306.8,4306.7,1.0591]
[1760030310716,0.00260865,4306.8,4306.7,41.8591]
[1760030312319,0.00260865,4306.8,4306.7,42.0971]
[1760030312621,0.00260865,4306.8,4306.7,41.8591]
[1760030312823,0.00260865,4306.8,4306.7,42.0971]
[1760030313123,3.2078,4308.0,4307.2,1.0591]
[1760030313428,3.6365,4308.0,4307.3,0.238]
[1760030313821,1.60775096,4307.9,4307.3,0.238]
[1760030314022,1.1046,4307.7,4307.2,3.2078]
[1760030314216,1.1046,4307.8,4307.3,1.0591]
[1760030314923,1.1046,4307.8,4307.2,3.2078]
[1760030315323,1.1046,4307.8,4307.3,1.0591]
[1760030315822,0.00221954,4307.9,4307.4,0.238]
[1760030316024,0.00221954,4307.9,4307.5,0.4231]
[1760030316423,0.00221954,4307.9,4307.6,1.1421]
[1760030316731,0.00221954,4307.9,4307.8,1.55973]
[1760030317026,0.00221954,4307.9,4307.8,42.35973]
[1760030317224,0.00221954,4307.9,4307.8,41.9421]
[1760030317626,3.2078,4308.5,4308.0,0.4231]
[1760030317922,3.2078,4309.0,4308.7,1.1421]
[1760030318121,1.5103,4310.0,4308.5,0.4231]
[1760030318122,3.2078,4309.5,4309.1,1.1421]
[1760030318327,3.2078,4309.5,4309.1,0.238]
[1760030318621,3.21027838,4309.5,4309.2,1.1421]
[1760030319028,3.21027838,4309.5,4309.1,0.238]
[1760030319729,3.21027838,4309.5,4309.0,41.2231]
[1760030319730,0.00247838,4309.5,4309.0,41.2231]
[1760030319928,0.00247838,4309.5,4309.2,1.1421]
[1760030320127,1.0566,4309.4,4309.1,0.238]
[1760030320430,0.00247838,4309.5,4309.2,1.1421]
[1760030320628,0.00247838,4309.5,4309.1,0.238]
[1760030321134,1.0566,4309.4,4309.0,40.8]
[1760030321328,1.05907838,4309.5,4309.0,41.038]
[1760030321831,0.00247838,4309.5,4309.1,1.1421]
[1760030322235,0.00247838,4309.5,4309.0,41.4611]
[1760030322629,0.00247838,4309.5,4309.1,1.1421]
[1760030323024,0.00247838,4309.5,4309.4,1.1421]
[1760030323225,0.00247838,4309.5,4309.4,1.3801]
[1760030324131,3.2078,4310.8,4310.0,0.4231]
[1760030324424,3.2078,4310.8,4310.6,1.1421]
[1760030324622,3.2078,4311.3,4310.7,41.038]
[1760030324829,3.2078,4311.3,4310.8,1.1421]
[1760030325026,3.20978965,4311.3,4310.8,0.00247703]
[1760030325233,0.00198965,4311.3,4311.1,1.0376]
[1760030325532,1.1291,4312.4,4311.4,0.41728]
[1760030325728,3.2078,4312.5,4311.8,1.0376]
[1760030325929,3.2078,4312.5,4311.8,1.2756]
[1760030326130,3.2078,4312.5,4311.8,4.4834]
[1760030326531,3.21002836,4312.5,4311.8,4.4834]
[1760030327236,3.21002836,4312.5,4311.8,1.2756]
[1760030327237,1.1291,4312.4,4311.8,1.2756]
[1760030327827,3.21002836,4312.5,4311.8,1.2756]
[1760030328330,3.21002836,4312.5,4312.0,0.4452]
[1760030328530,1.1291,4312.4,4312.1,0.237]
[1760030328730,3.21002836,4312.5,4312.1,1.2746]
[1760030328934,1.1291,4312.4,4312.1,1.2746]
[1760030329329,1.1291,4312.4,4312.1,0.237]
[1760030329633,1.1291,4312.4,4312.2,1.0376]
[1760030329839,0.00222836,4312.5,4312.2,1.0376]
[1760030330135,0.00222836,4312.5,4312.3,40.8]
[1760030330334,0.00222836,4312.5,4312.4,1.2746]
[1760030330834,0.00222836,4312.5,4312.4,6.2746]
[1760030331428,0.00222836,4312.5,4312.4,1.2746]
[1760030333229,0.15332836,4313.5,4312.6,1.0376]
[1760030333430,0.15332836,4313.5,4312.8,1.0376]
[1760030333629,3.2078,4313.7,4312.8,1.0376]
[1760030334130,3.21074539,4313.7,4312.8,1.0376]
[1760030334933,3.2078,4313.2,4313.1,1.0376]
[1760030335627,3.2078,4313.2,4312.9,1.2746]
[1760030335832,1.0381,4313.1,4312.4,1.0376]
[1760030336028,6.20589902,4313.2,4312.6,1.0376]
[1760030336234,3.2078,4313.2,4313.1,1.0376]
[1760030339437,3.21074539,4313.7,4313.1,1.0376]
[1760030340039,3.21074539,4313.7,4313.1,1.2746]
[1760030340334,4.11438024,4313.6,4313.1,1.0376]
[1760030340640,1.0381,4313.5,4313.2,1.0376]
[1760030340833,3.07628024,4313.6,4313.2,1.0376]
[1760030341133,3.21074539,4313.7,4313.2,1.0376]
[1760030341337,0.50011995,4313.6,4313.2,1.0376]
[1760030341540,3.44774539,4313.7,4313.2,1.0376]
[1760030341741,3.44774539,4313.7,4313.1,0.237]
[1760030342235,0.50031915,4313.6,4313.2,1.0376]
[1760030342440,1.0381,4313.6,4313.2,1.0376]
[1760030342641,3.21074539,4313.7,4313.5,0.4452]
[1760030342842,0.00294539,4313.7,4313.6,1.0376]
[1760030343034,0.00294539,4313.7,4313.6,4.2454]
[1760030343538,0.00294539,4313.7,4313.6,45.0454]
[1760030343737,1.04104539,4313.7,4313.6,40.8]
[1760030343935,0.2186,4313.5,4312.9,3.2078]
[1760030344235,1.0381,4313.3,4312.9,3.2078]
[1760030344437,0.50086709,4313.2,4312.4,3.2078]
[1760030344738,3.2078,4312.8,4312.2,0.237]
[1760030344935,3.2078,4312.8,4312.3,40.8]
[1760030345130,1.53943749,4312.7,4312.4,1.0376]
[1760030345336,0.50133749,4312.6,4312.3,40.8]
[1760030345537,3.2078,4312.8,4312.3,40.8]
[1760030345538,4.2287,4312.8,4312.3,40.8]
[1760030345742,0.5014288,4312.7,4312.4,1.0337]
[1760030345944,0.50142258,4312.6,4312.5,1.4638]
[1760030346238,3.2078,4312.8,4312.6,1.0337]
[1760030346442,0.50190805,4312.7,4312.6,1.0337]
[1760030346738,1.0209,4312.6,4312.0,1.0337]
[1760030346944,1.0209,4312.6,4311.0,0.4452]
[1760030346945,1.1845,4312.0,4311.1,1.0337]
[1760030347141,3.2078,4311.6,4311.1,1.0337]
[1760030347340,0.50190805,4311.5,4311.3,1.0337]
[1760030347545,1.0209,4311.8,4311.3,1.0337]
[1760030347546,0.50190805,4311.4,4311.3,1.0337]
[1760030347842,0.50190805,4311.4,4311.2,40.8]
[1760030348033,1.0209,4311.2,4310.8,1.27317703]
[1760030348341,1.0209,4311.0,4310.8,0.00247703]
[1760030348536,0.93820805,4311.0,4309.7,3.2078]
[1760030348736,1.2405821,4310.7,4310.0,0.4301]
[1760030348935,3.81819774,4310.9,4310.5,1.4638]
[1760030348936,0.50190805,4310.6,4310.5,1.4638]
[1760030349139,0.50190805,4310.6,4310.5,0.4301]
[1760030349333,0.50190805,4310.9,4310.5,0.4301]
[1760030349539,0.50316118,4310.8,4310.5,0.43301848]
[1760030349740,0.50316118,4310.7,4310.6,1.0337]
[1760030350942,1.0209,4310.6,4310.5,0.00291848]
[1760030351141,1.52406118,4310.6,4310.5,0.00291848]
[1760030351539,4.73186118,4310.6,4310.5,0.00291848]
[1760030352742,12.69222432,4310.6,4310.5,0.00291848]
[1760030353837,7.69222432,4310.6,4310.5,0.00291848]
[1760030355246,6.90832432,4310.6,4310.5,0.00291848]
[1760030355543,7.92922432,4310.6,4310.5,0.00291848]
[1760030356745,3.71096118,4310.6,4310.5,1.03661848]
[1760030357245,0.00288858,4310.9,4310.6,1.0337]
[1760030357442,1.52361832,4310.8,4310.6,1.0337]
[1760030357639,1.0209,4310.6,4310.5,0.00291848]
[1760030357836,4.73141832,4310.6,4310.5,0.00291848]
[1760030358040,7.78318135,4310.6,4310.5,0.00291848]
[1760030359541,13.02018135,4310.6,4310.5,0.00291848]
[1760030359937,6.99928135,4310.6,4310.5,1.03661848]
[1760030360244,0.237,4310.7,4310.5,0.43301848]
[1760030360445,0.237,4310.7,4310.6,1.0337]
[1760030361153,0.00288858,4310.9,4310.6,1.0337]
[1760030361745,0.00288858,4310.9,4310.5,0.43301848]
[1760030362250,0.00288858,4310.9,4310.6,1.0337]
[1760030363248,1.0209,4310.7,4310.5,0.00291848]
[1760030363440,2.99169093,4310.8,4310.5,0.00291848]
[1760030363644,1.0209,4310.7,4310.5,0.00291848]
[1760030363844,0.237,4310.8,4310.6,1.0337]
[1760030364738,0.237,4310.8,4310.5,0.43301848]
[1760030364940,0.00288858,4310.9,4310.6,1.0337]
[1760030365345,0.00288858,4310.9,4310.8,1.0337]
[1760030365546,0.00288858,4310.9,4310.8,41.8337]
[1760030366351,0.00288858,4310.9,4310.8,42.0707]
[1760030366545,0.00288858,4310.9,4310.5,0.85037848]
[1760030366546,0.00288858,4310.9,4310.5,0.00291848]
[1760030366745,0.00288858,4310.9,4309.4,3.2078]
[1760030366746,0.50283991,4310.8,4309.4,3.2078]
[1760030366941,0.50283991,4310.8,4309.0,0.4301]
[1760030366942,1.1215,4310.2,4309.0,0.4301]
[1760030367253,1.1215,4310.0,4309.1,41.8337]
[1760030367553,3.04097087,4309.9,4309.1,41.8337]
[1760030367744,3.04097087,4309.9,4309.1,41.83585753]
[1760030368553,1.1215,4309.8,4309.1,41.83585753]
[1760030368852,3.20353786,4309.7,4309.1,41.83585753]
[1760030369053,3.20353786,4309.7,4309.1,0.00215753]
[1760030369054,0.2015,4309.5,4309.1,0.00215753]
[1760030369348,4.08803786,4309.4,4309.1,0.00215753]
[1760030369552,1.1215,4309.3,4309.1,0.00215753]
[1760030369746,2.96653786,4309.4,4309.1,0.00215753]
[1760030369946,3.4448,4309.8,4309.2,1.0337]
[1760030370142,3.2078,4309.8,4309.2,1.0337]
[1760030370347,1.1215,4310.0,4309.3,1.0337]
[1760030371543,4.5308,4310.0,4309.3,1.0337]
[1760030372447,3.00203937,4309.9,4309.1,0.00215753]
[1760030372752,1.1215,4309.8,4309.1,0.00215753]
[1760030373051,3.20035822,4309.7,4309.1,40.80215753]
[1760030373449,0.237,4309.7,4309.1,40.80215753]
[1760030373746,0.237,4309.7,4309.2,1.0337]
[1760030373747,1.1215,4309.5,4309.2,1.0337]
[1760030373955,2.96335822,4309.6,4309.2,1.0337]
[1760030374154,0.237,4309.6,4309.1,40.80215753]
[1760030374347,1.1215,4309.5,4309.1,40.80215753]
[1760030374544,3.01120355,4309.5,4309.2,1.2707]
[1760030374846,3.4448,4310.0,4309.5,0.4301]
[1760030375250,3.4448,4310.0,4309.6,1.0337]
[1760030375551,3.4448,4310.0,4309.6,1.45116]
[1760030375754,0.237,4310.0,4309.6,1.0851]
[1760030376053,1.2588,4310.0,4309.5,3.6379]
[1760030376460,0.237,4310.0,4309.6,1.0851]
[1760030376655,0.237,4310.0,4309.5,3.6379]
[1760030376954,1.0218,4309.9,4309.6,1.0851]
[1760030377152,3.4448,4310.0,4309.6,1.0851]
[1760030377451,1.0218,4309.9,4309.3,1.0851]
[1760030377642,3.4448,4310.0,4309.3,0.41749]
[1760030377844,3.4448,4310.0,4309.5,0.415]
[1760030378153,1.0218,4309.9,4309.6,1.0851]
[1760030378349,1.52726443,4309.8,4309.1,0.00215753]
[1760030378549,1.52726443,4309.7,4309.1,0.00215753]
[1760030378754,0.74246443,4309.6,4309.1,0.00215753]
[1760030378954,0.237,4309.6,4309.2,41.8851]
[1760030379153,1.0218,4309.5,4309.3,1.0851]
[1760030379955,0.237,4309.6,4309.1,1.08725753]
[1760030380151,1.0218,4309.5,4309.1,0.00215753]
[1760030380452,1.0218,4309.5,4309.1,40.80215753]
[1760030380650,0.237,4309.6,4309.1,40.80215753]
[1760030380844,1.0218,4309.5,4309.2,1.0851]
[1760030381150,0.237,4309.6,4309.2,1.0851]
[1760030381359,0.237,4309.6,4309.1,40.80215753]
[1760030381653,1.0218,4309.5,4309.2,1.0851]
[1760030381858,1.0218,4309.5,4309.1,40.80215753]
[1760030382049,0.237,4309.6,4309.2,1.0851]
[1760030382452,1.0218,4309.5,4309.1,40.80215753]
[1760030382854,0.237,4309.6,4309.2,1.0851]
[1760030383050,1.0218,4309.9,4309.2,1.0851]
[1760030383051,1.0218,4309.9,4309.3,0.237]
[1760030383247,3.2078,4310.0,4309.6,1.0851]
[1760030383453,0.50544129,4309.9,4309.6,1.0851]
[1760030383658,3.2078,4310.0,4309.6,1.0851]
[1760030383852,3.2078,4310.0,4309.5,0.83247]
[1760030384056,1.0218,4310.4,4309.6,1.0851]
[1760030384254,0.50540857,4310.3,4309.7,1.50255]
[1760030384455,3.2078,4310.5,4309.8,1.0851]
[1760030384657,0.50538932,4310.4,4309.8,1.0851]
[1760030384865,0.50538932,4310.3,4309.6,0.65445]
[1760030385058,3.2078,4310.5,4309.8,1.0995]
[1760030385362,3.2078,4310.5,4309.8,1.51693]
[1760030385363,0.50538705,4310.4,4309.8,1.51693]
[1760030385562,3.2078,4310.5,4309.7,1.0995]
[1760030385759,0.50538913,4310.4,4309.8,0.41744]
[1760030386054,3.2078,4310.5,4309.7,1.0995]